Cogmind - Beta 14 @@@ ROGUE MODE // 2024.09.04 @ 01:01:02 Player: Andru7428 Result: Self-destructed Performance ------------- Evolutions (9) 4500 Regions Visited (29) 5800 Robots Destroyed (424) 2120 Value Destroyed (19765) 19765 Prototype IDs (31) 620 Alien Tech Used (0) 0 Bonus (7843) 7843 TOTAL SCORE: 40648 Bonus ------- High Alert Combat Kills 4042 Follower Combat Kills 400 Entered Garrisons 1000 Met Data Miner 300 Acquired ECA 300 Met Warlord at Base 500 MAIN.C Attacked Warlord 500 Warlord Defense Kills 1238 Friendly Fire -437 Cogmind --------- Core Integrity 871/1600 Matter 62/700 Energy 100/100 System Corruption 2% Temperature Cool (0) Movement Core (750) Ox14 Location -1/Access Parts ------- > --- POWER (2) -------- (None) > --- PROPULSION (5) --- (None) > --- UTILITY (14) ----- High-capacity Storage Unit Advanced Matter Compressor Experimental Core Analyzer Experimental Core Analyzer Improved Armor Integrity Analyzer Advanced Transmission Jammer > --- WEAPON (4) ------- (None) > --- INVENTORY (20) --- Advanced Cryofiber Web Experimental Cooling System Advanced Coolant Injector Advanced Signal Interpreter Encrypted Comm Array Advanced Thermal Shield Quantum Rifle Enhanced Nova Cannon KE Penetrator Enhanced Force Lance Peak State ------------ > --- POWER ------------ Quantum Reactor Light Quantum Reactor > --- PROPULSION ------- Medium Treads Heavy Treads Advanced Heavy Siege Treads > --- UTILITY ---------- Experimental Cooling System Coolant Network High-capacity Storage Unit Advanced Targeting Computer Experimental Core Analyzer Experimental Core Analyzer Improved Armor Integrity Analyzer Improved Kinecellerator Layered Light Armor Plating Advanced Shield Generator Hacking Suite Advanced Corruption Screen High-powered Tractor Beam > --- WEAPON ----------- Heavy Mass Driver Heavy Gauss Cannon Compact Linear Accelerator > --- INVENTORY -------- Medium Treads Heavy Treads Advanced Cryofiber Web Experimental Cooling System Advanced Coolant Injector Advanced Matter Compressor Advanced Signal Interpreter Encrypted Comm Array Advanced Transmission Jammer Advanced Thermal Shield Quantum Rifle Enhanced Nova Cannon KE Penetrator Railgun Bore Cannon Hardcell Cannon Linear Accelerator Ragnarok Missile Launcher Enhanced Force Lance [Rating: 181] Favorites ----------- Power Improved Ion Engine Engine Improved Ion Engine Power Core Neutrino Core Reactor Light Antimatter Reactor Propulsion Light Treads Treads Light Treads Leg Armored Leg Wheel Compact Wheel Utility Improved Targeting Computer Device Improved Cooling System Storage High-capacity Storage Unit Processor Improved Targeting Computer Hackware Hacking Suite Protection Improved Heavy Armor Plating Weapon Plasma Rifle Energy Gun Plasma Rifle Energy Cannon Matter Neutralizer Ballistic Gun Makeshift Shrapnel Gun Ballistic Cannon Gauss Cannon Launcher Precision Rocket Launcher Impact Weapon Makeshift Hammer Build | -11 -10 -10 -9 -9 -8 -8 -7 -7 -7 -7 -6 -6 -6 -6 -6 -6 -6 -6 -6 -6 -5 -5 -5 -5 -4 -4 -3 -2 -1 ------- Run | Yrd Mat Min Mat Min Mat Gar Fac Low Low Dat Pro Fac Gar Fac Gar Fac Gar Fac Gar Fac Fac Upp Upp War Pro Fac Res Res Acc Slots Evolved 18 | . . . 2 . 2 . 2 . . . . 2 . . . . . . . . 2 . . . . 2 2 2 2 Power 1 | . . . . . . . . . . . . . . . . . . . . . 1 . . . . . . . . Propulsion 3 | . . . . . 1 . . . . . . 1 . . . . . . . . . . . . . . 1 . . Utility 12 | . . . 1 . 1 . 2 . . . . 1 . . . . . . . . 1 . . . . 1 1 2 2 Weapon 2 | . . . 1 . . . . . . . . . . . . . . . . . . . . . . 1 . . . Parts Attached 496 | 7 12 7 25 2 14 14 25 5 17 3 6 13 28 22 19 39 30 8 9 3 35 14 18 30 3 33 19 16 20 Power 23 | 1 1 . 1 . . . 1 . 1 . . . 1 1 . 1 2 . . . 2 . . 5 . 3 1 1 1 Engine 8 | 1 1 . 1 . . . 1 . 1 . . . 1 1 . . . . . . . . . 1 . . . . . Core 8 | . . . . . . . . . . . . . . . . 1 1 . . . 2 . . 2 . 1 1 . . Reactor 7 | . . . . . . . . . . . . . . . . . 1 . . . . . . 2 . 2 . 1 1 Propulsion 63 | 2 . . 7 . 2 1 3 . 3 . . 4 4 2 4 4 3 . . . 6 . . 5 . 2 1 4 6 Treads 52 | 2 . . 4 . 2 1 3 . 3 . . 3 4 2 4 4 3 . . . 1 . . 4 . 2 . 4 6 Leg 10 | . . . 2 . . . . . . . . 1 . . . . . . . . 5 . . 1 . . 1 . . Wheel 1 | . . . 1 . . . . . . . . . . . . . . . . . . . . . . . . . . Hover . | . . . . . . . . . . . . . . . . . . . . . . . . . . . . . . Flight . | . . . . . . . . . . . . . . . . . . . . . . . . . . . . . . Utility 220 | 2 8 4 8 . 3 1 10 3 9 . 3 5 8 13 5 22 10 7 2 1 20 10 7 10 3 24 12 5 5 Device 137 | 1 7 4 3 . 1 . 7 3 6 . 3 2 4 7 . 20 5 7 2 1 12 4 5 3 3 14 8 3 2 Storage 7 | 1 1 . . . . . . . . . . . 1 1 . . . . . . . . . 1 . . 1 . 1 Processor 10 | . . . . . . . 2 . . . . . . . 1 . . . . . 1 . . 2 . 1 1 1 1 Hackware 3 | . . . . . . . . . . . . . . . . . . . . . . . . . . 3 . . . Protection 63 | . . . 5 . 2 1 1 . 3 . . 3 3 5 4 2 5 . . . 7 6 2 4 . 6 2 1 1 Artifact . | . . . . . . . . . . . . . . . . . . . . . . . . . . . . . . Weapon 190 | 2 3 3 9 2 9 12 11 2 4 3 3 4 15 6 10 12 15 1 7 2 7 4 11 10 . 4 5 6 8 Energy Gun 84 | 1 2 2 7 1 7 6 5 . . . . . 3 5 8 7 9 . 4 1 4 2 5 3 . 1 1 . . Energy Cannon 7 | . . . . . . . . . . . . . 1 . . . . . . . . . 4 1 . 1 . . . Ballistic Gun 23 | 1 1 . . . . . 2 . 2 3 1 1 5 . . . 1 . . . . . . 3 . 1 1 . 1 Ballistic Cannon 18 | . . . . . . . 2 1 1 . . . 1 . . . . . . . . . . . . . 3 5 5 Launcher 33 | . . 1 2 1 1 3 . 1 1 . 1 1 1 . 2 3 2 . 3 . 1 2 2 2 . . . 1 2 Special Weapon . | . . . . . . . . . . . . . . . . . . . . . . . . . . . . . . Impact Weapon 25 | . . . . . 1 3 2 . . . 1 2 4 1 . 2 3 1 . 1 2 . . 1 . 1 . . . Slashing Weapon . | . . . . . . . . . . . . . . . . . . . . . . . . . . . . . . Piercing Weapon . | . . . . . . . . . . . . . . . . . . . . . . . . . . . . . . Special Melee Weapon . | . . . . . . . . . . . . . . . . . . . . . . . . . . . . . . Unidentified Prototypes 22 | . . 1 1 . 1 . 1 . . . . 1 . 2 . . . . . . 1 1 . 8 . . 1 3 1 Corrupted Parts 4 | . . . . . . . . . . . . . . . . . 2 . . . . . . 2 . . . . . System Corruption 18 | . . . . . . . . . . . . . . . . . 8 . . . . . . 10 . . . . . Parts Lost 76 | . . . 2 . 1 1 1 . 7 . . . 5 . 1 2 8 . . . 2 . 1 7 . 5 6 2 25 Power 11 | . . . . . . . 1 . . . . . 1 . . 1 1 . . . . . . 1 . 1 2 . 3 Propulsion 15 | . . . 2 . 1 1 . . 3 . . . . . . . 2 . . . . . . 1 . . . . 5 Utility 28 | . . . . . . . . . 2 . . . 2 . 1 1 3 . . . 2 . . 1 . 1 4 2 9 Weapon 22 | . . . . . . . . . 2 . . . 2 . . . 2 . . . . . 1 4 . 3 . . 8 Highest Loss Streak 10 | . . . 1 . 1 1 1 . 6 . . . 2 . 1 1 3 . . . 1 . 1 5 . 3 3 2 10 To Critical Strikes 1 | . . . . . . . . . . . . . . . . . . . . . . . . 1 . . . . . Average Slot Usage (%) 89 | . 100 100 99 100 99 99 95 92 92 72 92 92 89 85 87 89 88 90 86 86 80 87 87 84 88 90 87 79 76 Engine 4 | . 14 14 11 11 9 9 6 7 7 7 7 6 6 6 6 2 . . . . . . . 3 . . . . . Core 1 | . . . . . . . . . . . . . . . . 3 . . . . 3 5 5 5 5 4 3 4 1 Reactor 1 | . . . . . . . . . . . . . . . . . 5 6 6 6 1 . . . . 2 3 3 5 Treads 17 | . 28 28 15 22 26 26 23 23 21 23 23 20 24 19 20 19 17 17 13 13 10 . . 4 17 14 14 15 11 Leg 2 | . . . 6 . . . . . . . . 4 . . . . . . . . 1 23 23 14 . . 3 . . Device 12 | . 14 14 11 11 12 9 6 7 17 15 15 17 7 14 13 12 13 13 13 13 16 16 10 10 11 10 11 16 14 Storage 6 | . 14 14 11 11 9 9 7 7 7 7 7 6 6 6 6 6 6 6 6 6 5 5 5 5 5 5 4 4 5 Processor 9 | . . . . . . . 15 15 7 7 7 6 6 6 8 13 13 13 13 13 11 11 11 14 23 15 13 13 18 Protection 9 | . . . 9 11 14 18 10 7 6 7 7 8 16 11 12 9 11 13 13 13 9 5 11 4 5 11 10 6 4 Energy Gun 13 | . 21 27 32 32 26 25 12 . . . . . 5 19 19 17 19 16 18 17 13 16 15 12 . 2 . . . Ballistic Gun 2 | . 6 . . . . . 5 . . 2 19 15 11 . . . . . . . . . . . 11 12 1 . . Ballistic Cannon 2 | . . . . . . . . 21 22 . . . . . . . . . . . . . . . . . 5 9 12 Impact Weapon 1 | . . . . . . . 3 . . . 3 3 2 . . 2 . 2 . 2 2 . . 2 . 4 3 . . Peak Build Rating 181 | 7 10 16 25 25 29 29 48 52 55 48 54 65 79 83 79 77 89 89 83 83 93 89 89 103 106 119 140 168 181 Average Rating 72 | 5 7 8 18 24 27 27 41 51 51 38 51 61 64 79 68 71 82 85 80 82 85 86 85 86 105 113 132 150 165 On Entrance 64 | . 7 8 9 25 25 27 29 44 52 48 48 54 59 79 77 67 77 86 83 81 83 87 82 85 101 106 111 115 168 Naked Turns . | . . . . . . . . . . . . . . . . . . . . . . . . . . . . . . Heaviest Build 135 | 14 30 31 43 43 54 54 71 72 75 65 62 68 92 92 90 103 97 82 85 81 91 94 105 101 72 102 119 135 132 Greatest Support 178 | 40 40 40 40 40 60 62 78 78 80 80 80 102 130 130 130 120 130 120 90 90 90 64 64 130 114 114 114 167 178 Greatest Overweight (x) 19 | 4 . . 2 1 1 . . . 19 . . 1 . . . . 1 . . . 2 1 1 1 . 1 1 . . Average Overweight (x) . | . . . . 1 . . . . . . . . . . . . . . . . . 1 1 . . . . . . Largest Inventory Capacity 20 | 8 15 15 15 15 15 15 15 15 15 15 15 15 20 20 20 20 20 20 20 20 20 20 20 20 20 20 20 20 20 Average Capacity 18 | 7 14 15 15 15 15 15 15 15 15 15 15 15 16 20 20 20 20 20 20 20 20 20 20 20 20 20 20 20 20 Most Carried 20 | 6 15 15 15 14 15 15 15 15 15 15 15 15 20 20 20 20 20 20 20 20 20 20 20 20 15 20 20 20 20 Average Carried 17 | 5 11 14 14 14 13 14 14 14 13 14 14 14 15 19 19 19 19 19 19 19 19 19 19 19 15 18 18 19 17 Final Capacity 20 | 8 15 15 15 15 15 15 15 15 15 15 15 15 20 20 20 20 20 20 20 20 20 20 20 20 20 20 20 20 20 Final Carried 20 | 6 15 15 14 14 15 15 15 15 14 14 15 15 20 20 20 20 20 19 20 20 20 20 20 15 15 19 16 20 10 Class Distribution -------------------- 27% | Tank 20% | Scavenger-Tank 17% | Mutant 8% | Gunner 8% | Scavenger-Gunner 6% | Skirmisher 5% | Scavenger-Mutant 3% | Scavenger-Skirmisher Dominant Class ---------------- Mutant | -10/Materials Mutant | -10/Mines Tank | -9/Materials Tank | -9/Mines Tank | -8/Materials Tank | -8/Garrison Mutant | -7/Factory Skirmisher | -7/Lower Caves Gunner | -7/Lower Caves Mutant | -7/Data Miner Mutant | -6/Proximity Caves Mutant | -6/Factory Tank | -6/Garrison Scavenger-Tank | -6/Factory Scavenger-Tank | -6/Garrison Scavenger-Mutant | -6/Factory Scavenger-Tank | -6/Garrison Scavenger-Tank | -6/Factory Scavenger-Tank | -6/Garrison Scavenger-Tank | -6/Factory Mutant | -5/Factory Skirmisher | -5/Upper Caves Tank | -5/Upper Caves Commander-Mutant | -5/Warlord Scavenger-Skirmisher | -4/Proximity Caves Scavenger-Tank | -4/Factory Scavenger-Gunner | -3/Research Gunner | -2/Research Gunner | -1/Access Resources | -11 -10 -10 -9 -9 -8 -8 -7 -7 -7 -7 -6 -6 -6 -6 -6 -6 -6 -6 -6 -6 -5 -5 -5 -5 -4 -4 -3 -2 -1 ----------- Run | Yrd Mat Min Mat Min Mat Gar Fac Low Low Dat Pro Fac Gar Fac Gar Fac Gar Fac Gar Fac Fac Upp Upp War Pro Fac Res Res Acc Matter Collected 12080 | 266 297 90 268 75 179 168 540 249 844 . 303 388 809 342 338 574 437 . 259 . 394 227 327 386 110 769 744 1163 1534 Remotely 2782 | . . . . . . . . . . . . . . . . . . . . . . . . . 44 . 419 1158 1161 Salvage Created 17935 | 51 499 110 720 21 600 775 604 90 126 . 217 337 991 1593 680 813 1469 . 505 30 803 264 506 358 . 1211 644 954 2964 Parts 705 | 6 17 10 49 . 30 45 38 1 6 . 9 7 28 50 32 15 58 . 13 2 21 4 15 15 . 56 23 21 134 Haulers Intercepted 13 | . 1 . 1 . 1 . . . . . . 1 . 2 . . . . . . 2 1 . . . . . 1 3 Recyclers Shooed 11 | . . . 1 . . . . . . . . . . 2 . . . . . . 5 . . . . 1 1 . 1 Parts Field Recycled . | . . . . . . . . . . . . . . . . . . . . . . . . . . . . . . Retrieved Matter . | . . . . . . . . . . . . . . . . . . . . . . . . . . . . . . Parts Self-Destructed 26 | . . . . . . . . 1 5 . 9 . . . . . . . . . . 3 8 . . . . . . Prevented . | . . . . . . . . . . . . . . . . . . . . . . . . . . . . . . Kills | -11 -10 -10 -9 -9 -8 -8 -7 -7 -7 -7 -6 -6 -6 -6 -6 -6 -6 -6 -6 -6 -5 -5 -5 -5 -4 -4 -3 -2 -1 ------- Run | Yrd Mat Min Mat Min Mat Gar Fac Low Low Dat Pro Fac Gar Fac Gar Fac Gar Fac Gar Fac Fac Upp Upp War Pro Fac Res Res Acc Combat Hostiles Destroyed 359 | . 10 5 17 18 13 21 10 4 9 . 8 4 14 18 18 20 30 . 11 . 11 6 12 12 . 19 8 20 41 Melee 2 | . . . . . . . . . . . . . 2 . . . . . . . . . . . . . . . . Guns 161 | . 10 2 11 1 10 12 10 . 1 . 6 4 9 16 8 8 16 . 4 . 7 2 3 3 . 17 . . 1 Cannons 70 | . . . . . . . . 1 6 . . . 1 . . . . . . . . . 2 1 . 2 8 16 33 AOE 100 | . . 3 6 17 2 7 . 3 2 . 2 . 1 . 6 8 7 . 5 . 3 3 7 7 . . . 4 7 Classes Destroyed 24 | 1 4 1 3 1 3 1 1 . 1 . 2 . . . . 2 1 . . . . . . 1 . . . 2 . Worker 20 | . . . 1 . . . 2 . . . . . . 3 . 2 . . . . 3 . . . . 3 . . 6 Builder 19 | . 1 . 1 . 1 . . . . . . . . 2 . . . . . . . . . . . 1 2 . 11 Tunneler 4 | 3 . . . . . . . . . . . . . . . . . . . . . . . . . . . . 1 Hauler 13 | . 1 . 1 . 1 . . . . . . 1 . 2 . . . . . . 2 1 . . . . . 1 3 Recycler 12 | . . . 1 . . . 1 . . . . 1 . 1 . . . . . . 2 . . . . 1 2 . 3 Mechanic 1 | . . . . . . . . . . . . . . . . 1 . . . . . . . . . . . . . Operator 3 | . . . . . 1 . . . . . . . . 1 . . . . . . . . . . . 1 . . . Watcher 14 | . 2 . 4 . 1 . . . . . . . . 4 . 1 1 . . 1 . . . . . . . . . Swarmer 72 | . . 3 9 . 4 7 4 . 3 . 5 . 4 . 7 . 4 . . . 5 . 5 4 . 4 . 2 2 Cutter 5 | . . . . . . 2 . . . . . . . . 3 . . . . . . . . . . . . . . Saboteur 2 | . . . . . . . . . . . . . . . . 2 . . . . . . . . . . . . . Grunt 145 | . 10 2 3 . 6 7 1 3 3 . 1 3 4 11 . 13 13 . 9 . 2 5 6 2 . 5 5 7 24 Brawler 9 | . . . . . 1 . 1 1 . . . . . . . 1 2 . . . . . 1 1 . 1 . . . Duelist 8 | . . . . . 1 1 . . 1 . . . . 1 . 1 1 . . . . . . 1 . . . 1 . Sentry 35 | . . . 5 . 1 4 2 . . . 1 1 2 4 6 1 3 . 1 . . 1 . . . . . . 3 Demolisher 2 | . . . . . . . . . . . . . . . . . . . . . . . . 1 . . . 1 . Specialist 1 | . . . . . . . . . . . . . . . . . 1 . . . . . . . . . . . . Hunter 12 | . . . . . . . . . . . 1 . 2 . 1 . . . . . . . . 2 . 2 . . 4 Programmer 37 | . . . . . . . 2 . 1 . . . 1 2 1 2 4 . 1 . 4 . . . . 7 2 2 8 Behemoth 8 | . . . . . . . . . 1 . . . 1 . . . 2 . . . . . . 1 . . 1 2 . Striker 2 | . . . . . . . . . . . . . . . . . . . . . . . . . . . . 2 . Executioner 3 | . . . . . . . . . . . . . . . . . . . . . . . . . . . . 3 . Samaritan 2 | . . . . . . . . . . . 2 . . . . . . . . . . . . . . . . . . Assembled 18 | . . . . 18 . . . . . . . . . . . . . . . . . . . . . . . . . Wasp 1 | . . . . . . . . . . . . . . . . . . . . . . . . . . . . . 1 Best Kill Streak 19 | 3 4 3 6 18 9 5 6 4 4 . 4 4 4 7 5 6 13 . 7 1 5 5 5 4 . 5 7 7 19 Combat Bots Only 18 | . 4 3 4 18 4 5 5 4 4 . 4 4 4 2 5 5 13 . 7 . 5 4 5 4 . 4 6 7 13 Max Kills in Single Turn 5 | 1 1 3 5 5 2 3 2 2 1 . 2 2 2 1 2 2 4 . 1 1 3 1 3 3 . 2 2 3 4 Gunslinging 2 | . . . . . 1 1 . . . . 1 1 1 . . . . . . . 1 . . 2 . 1 . . . Exploded 5 | . . 3 4 5 2 3 . 2 1 . 2 . 1 . 2 2 4 . 1 . 3 1 3 2 . . . 3 2 Melee 1 | . . . . . . . . . . . . . 1 . . . . . . . . . . . . . . . . Uniques/NPCs Destroyed . | . . . . . . . . . . . . . . . . . . . . . . . . . . . . . . Combat | -11 -10 -10 -9 -9 -8 -8 -7 -7 -7 -7 -6 -6 -6 -6 -6 -6 -6 -6 -6 -6 -5 -5 -5 -5 -4 -4 -3 -2 -1 -------- Run | Yrd Mat Min Mat Min Mat Gar Fac Low Low Dat Pro Fac Gar Fac Gar Fac Gar Fac Gar Fac Fac Upp Upp War Pro Fac Res Res Acc Hostile Shots Fired 2216 | . 47 10 53 16 56 58 75 6 128 . 83 26 134 149 148 118 173 . 39 . 67 18 45 139 . 170 87 72 299 Missed 652 | . 14 3 14 7 15 22 25 3 41 . 29 4 36 60 60 49 44 . 8 . 13 7 12 42 . 49 19 16 60 Damage Taken 28018 | . 393 112 463 193 514 522 458 360 1831 . 496 193 1544 1126 1018 1249 2052 24 600 62 703 246 602 2148 . 2234 1627 1593 5655 Core 2459 | . 88 6 33 . 60 47 15 117 91 . 38 24 78 100 106 165 162 . . . 91 27 23 98 . 104 92 165 729 Absorbed by Shields 1745 | . . . . . . . 136 12 212 . 176 88 48 178 . 100 73 . . . 181 . . 89 . 192 . . 260 Reduced by Siege Mode 553 | . . . . . . . . . . . . . . . . 10 30 . 20 . . . . . . 11 57 62 363 Redirected to Shielding 84 | . . . . . . . . . . . . . . . . . . . . . . . . . . . 84 . . Ignored by Resistances 64 | . . . . . . . . . . . . 49 15 . . . . . . . . . . . . . . . . Regen/Repaired (Parts) 2463 | . . . 11 . . . . . . . . 140 . 204 . 545 . . . . 659 . . 62 . 842 . . . Core Remaining (%) 76 | 100 . 62 . 91 . 80 . . . . 62 . . . . . . . . 25 . . . . 76 90 92 88 . Volleys Fired 855 | 4 50 8 35 7 23 32 27 22 39 . 15 11 45 84 34 37 71 . 27 2 21 13 38 20 18 45 19 31 77 Largest 4 | 2 2 2 3 3 3 3 3 3 3 . 3 3 3 3 3 3 3 . 3 3 3 3 3 3 1 3 2 3 4 Hottest 525 | 70 100 100 183 183 183 135 135 144 144 . 72 72 225 525 225 245 245 . 235 240 245 245 265 229 105 168 150 201 258 Shots Fired 2130 | 8 100 14 99 11 59 87 81 24 102 . 36 31 121 231 93 89 193 1 66 5 52 29 62 44 19 131 36 74 232 Gun 1554 | 8 100 12 96 6 55 84 81 . 8 . 31 31 115 231 88 78 188 1 58 5 51 23 34 35 . 124 1 . 10 Cannon 483 | . . . . . . . . 21 90 . . . 3 . . . . . . . . . 24 1 19 7 35 71 212 Launcher 93 | . . 2 3 5 4 3 . 3 4 . 5 . 3 . 5 11 5 . 8 . 1 6 4 8 . . . 3 10 Special . | . . . . . . . . . . . . . . . . . . . . . . . . . . . . . . Kinetic 753 | 4 24 . . . . . 48 21 98 . 31 31 70 . . . . . . . . . . 5 . 93 35 71 222 Thermal 1179 | 4 76 12 96 6 43 . 24 . . . . . 48 231 88 78 188 1 58 5 51 23 58 31 19 38 1 . . Explosive 93 | . . 2 3 5 4 3 . 3 4 . 5 . 3 . 5 11 5 . 8 . 1 6 4 8 . . . 3 10 Electromagnetic 105 | . . . . . 12 84 9 . . . . . . . . . . . . . . . . . . . . . . Robot Hit Streak 37 | 2 14 5 24 4 8 13 13 2 9 . 5 14 26 29 28 37 21 . 11 9 16 16 16 16 . 32 11 21 15 Robot Miss Streak 8 | 1 4 2 4 3 4 4 3 2 5 . 6 5 7 8 3 3 3 1 2 2 5 4 3 4 . 4 2 1 3 Penetration Max 2 | . . . . . . . 1 . 1 . . . . . . . . . . . . . . . . 1 1 1 2 Secondary Targets 29 | . 1 . 3 . 2 4 1 . . . 1 2 1 3 . 2 3 . 1 . 2 . . 2 . 1 . . . Max Gunslinging Chain 2 | . 1 . 1 . 1 1 1 . . . 1 2 1 1 . 1 1 . 1 . 1 . . 2 . 1 . . . Shots Hit Robots 1417 | 4 66 10 58 6 42 61 52 3 55 . 30 26 124 160 51 70 102 . 43 5 46 23 32 38 . 91 26 53 140 Core Hits 905 | 4 25 8 34 34 28 39 25 10 18 . 25 25 49 64 28 71 63 . 25 2 35 19 32 51 . 47 10 35 99 Critical Kills 7 | . . . . . . . . . . . . . 2 . . . . . . . . . . . . . . . 5 Critical Parts Destroyed 17 | . . . . . . . 1 . . . . . 4 . . . 2 . . . 1 . . . . 2 . . 7 Critical Strikes 113 | 1 7 . 2 . 4 . 3 . 6 . . . 6 11 7 5 9 . 2 2 4 . . 1 . 2 4 9 28 Burn 54 | 1 7 . 2 . 4 . 2 . . . . . . 11 7 5 7 . 2 2 3 . . 1 . . . . . Destroy 13 | . . . . . . . 1 . . . . . . . . . . . . . . . . . . . . . 12 Blast 35 | . . . . . . . . . 6 . . . . . . . . . . . . . . . . . 4 9 16 Smash 11 | . . . . . . . . . . . . . 6 . . . 2 . . . 1 . . . . 2 . . . Melee Attacks 185 | . . . . . 1 17 10 . . . 3 10 43 1 5 10 10 1 . 4 20 . . 4 . 25 21 . . Impact 185 | . . . . . 1 17 10 . . . 3 10 43 1 5 10 10 1 . 4 20 . . 4 . 25 21 . . Slashing . | . . . . . . . . . . . . . . . . . . . . . . . . . . . . . . Piercing . | . . . . . . . . . . . . . . . . . . . . . . . . . . . . . . Sneak Attacks 16 | . . . . . . . 1 . . . 2 2 . . . 1 . . . . 4 . . . . 4 2 . . Combat Hostiles . | . . . . . . . . . . . . . . . . . . . . . . . . . . . . . . Follow-up Attacks . | . . . . . . . . . . . . . . . . . . . . . . . . . . . . . . Damage Inflicted 56240 | 53 859 217 1260 1181 1197 1435 1145 402 1677 . 797 725 3918 3813 1884 3438 3329 . 1650 81 1804 1559 1581 3872 . 2671 1988 4779 8925 Guns 22507 | 53 825 111 830 60 783 864 1103 . 76 . 398 508 2188 3767 1138 1532 2096 . 846 81 1053 463 580 854 . 2094 . . 204 Cannons 13178 | . . . . . . . . 25 1437 . . . 28 . . . . . . . . . 109 34 . 216 1795 3419 6115 Explosions 17118 | . . 105 430 1121 414 571 . 377 164 . 229 . 243 . 746 1804 943 . 804 . 237 1096 892 2984 . . . 1360 2598 Melee 3249 | . . . . . . . 42 . . . 170 217 1459 . . 96 290 . . . 423 . . . . 361 191 . . Ramming 188 | . 34 1 . . . . . . . . . . . 46 . 6 . . . . 91 . . . . . 2 . 8 Kinetic 17602 | 15 175 . . . . . 680 25 1513 . 398 508 925 . . . . . . . . . . 130 . 1700 1795 3419 6319 Thermal 17372 | 38 650 111 830 60 626 405 328 . . . . . 1291 3767 1138 1532 2096 . 846 81 1053 463 689 758 . 610 . . . Explosive 16667 | . . 105 430 1121 368 166 . 377 164 . 229 . 243 . 746 1804 943 . 804 . 237 1096 892 2984 . . . 1360 2598 Electromagnetic 1162 | . . . . . 203 864 95 . . . . . . . . . . . . . . . . . . . . . . Impact 3249 | . . . . . . . 42 . . . 170 217 1459 . . 96 290 . . . 423 . . . . 361 191 . . Slashing . | . . . . . . . . . . . . . . . . . . . . . . . . . . . . . . Piercing . | . . . . . . . . . . . . . . . . . . . . . . . . . . . . . . Highest Corruption 17 | . . . . . . . 1 1 2 2 2 . . 1 1 4 14 14 7 7 2 2 2 10 10 15 17 6 1 Average Corruption 4 | . . . . . . . 1 1 1 2 2 . . 1 1 2 9 11 7 7 1 2 2 5 10 7 8 5 1 Corruption Purged 7 | . . . . . . . . . . . . . . . . . . 7 . . . . . . . . . . . Corruption Blocked 10 | . . . . . . . . . . . . . . . . . . . . . . . . . . . . . 10 Effects 298 | . . . . . . . 2 2 20 2 9 . . 6 9 24 66 9 10 8 12 20 17 3 22 32 19 6 . Message Errors 60 | . . . . . . . . 1 4 1 4 . . 1 . 3 11 2 2 2 6 7 3 1 4 4 3 1 . Matter Fused 66 | . . . . . . . . . 4 1 2 . . 3 3 5 10 1 1 2 1 6 6 . 4 12 4 1 . Heat Flow Errors 42 | . . . . . . . 1 1 5 . . . . . 1 6 11 2 1 . 1 . 1 1 4 3 2 2 . Energy Discharges 35 | . . . . . . . . . 2 . . . . 2 1 2 9 . 3 2 1 2 1 . 2 1 5 2 . Parts Rejected 2 | . . . . . . . . . . . . . . . . . 2 . . . . . . . . . . . . Parts Fused 5 | . . . . . . . . . . . . . . . . . 2 . 1 . 1 . . . 1 . . . . Data Loss (minor) 38 | . . . . . . . 1 . 1 . 2 . . . 3 6 7 1 1 . . 2 3 . 5 5 1 . . Data Loss (major) 13 | . . . . . . . . . 3 . . . . . . 1 2 . . 1 . . 1 . 1 2 2 . . Misfires 18 | . . . . . . . . . 1 . 1 . . . 1 1 3 1 1 . . 2 1 1 1 3 1 . . Alerts 9 | . . . . . . . . . . . . . . . . . 1 2 . 1 2 1 1 . . . 1 . . Weapon Failures 10 | . . . . . . . . . . . . . . . . . 8 . . . . . . . . 2 . . . Overload Shots 2 | . . . . . . . . . . . . . . 2 . . . . . . . . . . . . . . . Overflow Damage 2693 | . 1 . 23 19 18 22 . . 2 . 176 75 336 . 52 133 203 . 14 . 257 35 18 108 . 251 243 192 515 Projectiles 657 | . . . . . . . . . 2 . . . 35 . . . . . . . . . . . . . 122 177 321 Explosions 734 | . . . 23 19 18 22 . . . . 14 . . . 52 77 118 . 14 . 7 35 18 108 . . . 15 194 Melee 1302 | . 1 . . . . . . . . . 162 75 301 . . 56 85 . . . 250 . . . . 251 121 . . Knockbacks 80 | . 1 . . . . . . . 5 . . 1 2 1 . 1 . . . . 2 . . . . 3 12 19 33 Impact 11 | . 1 . . . . . . . . . . 1 1 1 . 1 . . . . 2 . . . . 3 1 . . Kinetic 60 | . . . . . . . . . 4 . . . . . . . . . . . . . . . . . 9 18 29 Secondary 9 | . . . . . . . . . 1 . . . 1 . . . . . . . . . . . . . 2 1 4 Self-Inflicted Damage 958 | . . 18 32 81 . 18 . . 16 . . . . . 140 253 . . . . 15 15 . . . . . . 370 Shots 19 | . . 1 1 3 . 1 . . 1 . . . . . 2 4 . . . . 1 1 . . . . . . 4 Rammed 22 | . 4 1 1 . . . 2 . . . . . . 3 . 1 . . . . 8 . . . . . 1 . 1 Targets Rammed 25 | . 4 1 1 . . . 2 . . . . . . 4 . 1 . . . . 10 . . . . . 1 . 1 Kicked . | . . . . . . . . . . . . . . . . . . . . . . . . . . . . . . Crushed 3 | . . . . . . . . . . . . . . 1 . . . . . . 2 . . . . . . . . Highest Temperature 350 | 40 156 30 171 132 290 138 234 144 303 . . 204 72 294 196 313 313 209 280 120 191 143 285 181 228 256 350 . 26 Average Temperature 59 | 20 35 21 55 70 97 44 61 37 97 . . 106 12 25 24 81 69 94 91 46 54 59 80 48 37 35 110 . 16 Received Heat Transfer 5431 | . 234 45 78 60 216 162 74 19 673 . 45 126 192 358 174 247 462 . 285 . 27 81 192 385 . 243 189 198 666 Effects 1 | . . . . . . . . . 1 . . . . . . . . . . . . . . . . . . . . Energy Bleed 1 | . . . . . . . . . 1 . . . . . . . . . . . . . . . . . . . . Siege Activations 17 | . . . . . . . . . . . . . . . . 2 2 . 1 . . . . 1 . 1 1 3 6 Total Turns 388 | . . . . . . . . . . . . . . . . 46 51 . 18 . . . . 1 . 17 38 47 170 Longest Duration 45 | . . . . . . . . . . . . . . . . 29 35 . 18 . . . . 1 . 17 38 31 45 Robots Corrupted 17 | . 1 . . . 1 2 . . . . 1 1 4 . . . 2 . . . 2 . . . . 2 1 . . Combat Hostiles 6 | . . . . . 1 2 . . . . . . 1 . . . 2 . . . . . . . . . . . . Parts Fried 40 | . 5 . . . 2 7 1 . . . . 2 10 . . 1 1 . . . 6 . . . . 1 4 . . Impact Corruptions 47 | . 1 . . . . . . . . . 11 2 9 . . 2 3 . . . 8 . . . . 8 3 . . Robots Melted 22 | . 1 . . . . . . . . . . . . 2 4 4 5 . 2 . 2 1 . 1 . . . . . Combat Hostiles 20 | . . . . . . . . . . . . . . 2 4 4 5 . 2 . 1 1 . 1 . . . . . Parts Melted 128 | 1 7 2 9 . 1 . . . . . . . . 33 13 15 26 . 5 . 9 1 3 1 . . . 1 1 Heat Transferred 40939 | 185 2442 333 2331 111 1419 400 740 . . . . . 1739 8397 2965 4050 5450 . 2200 400 2600 1100 1435 1643 . 999 . . . Parts Sabotaged . | . . . . . . . . . . . . . . . . . . . . . . . . . . . . . . Parts Stolen . | . . . . . . . . . . . . . . . . . . . . . . . . . . . . . . Parts Stripped . | . . . . . . . . . . . . . . . . . . . . . . . . . . . . . . Power Chain Reactions 8 | . . . . . 1 7 . . . . . . . . . . . . . . . . . . . . . . . Alert | -11 -10 -10 -9 -9 -8 -8 -7 -7 -7 -7 -6 -6 -6 -6 -6 -6 -6 -6 -6 -6 -5 -5 -5 -5 -4 -4 -3 -2 -1 ------- Run | Yrd Mat Min Mat Min Mat Gar Fac Low Low Dat Pro Fac Gar Fac Gar Fac Gar Fac Gar Fac Fac Upp Upp War Pro Fac Res Res Acc Peak Influence 1833 | 15 211 99 367 31 450 878 505 . . . . 140 920 714 1291 1088 1833 979 1267 675 427 . . . . 399 227 475 1587 Initial 961 | . 9 40 . . 11 292 460 . . . . 12 100 483 368 677 736 961 685 665 330 . . . . . 209 127 284 Average 475 | 6 86 61 188 28 239 587 333 . . . . 26 501 467 938 847 1357 962 962 667 293 . . . . 129 141 160 668 Maximum Alert Level 5 | . 1 . 1 . 2 3 2 . . . . . 3 3 4 3 5 3 4 2 2 . . . . 1 1 2 4 Low Security (%) 30 | 100 98 100 31 100 40 . 13 . . . . 100 11 . . . . . . . 21 . . . . 63 57 78 . Level 1 24 | . 1 . 68 . 35 19 52 . . . . . 26 30 9 . . . . . 69 . . . . 36 42 11 38 Level 2 16 | . . . . . 23 37 34 . . . . . 28 68 7 8 . . 17 100 9 . . . . . . 9 19 Level 3 19 | . . . . . . 42 . . . . . . 33 1 50 91 29 100 45 . . . . . . . . . 22 Level 4 6 | . . . . . . . . . . . . . . . 33 . 40 . 36 . . . . . . . . . 19 Level 5 2 | . . . . . . . . . . . . . . . . . 30 . . . . . . . . . . . . High Security . | . . . . . . . . . . . . . . . . . . . . . . . . . . . . . . Max Security . | . . . . . . . . . . . . . . . . . . . . . . . . . . . . . . Squads Dispatched 52 | . 3 . 1 . 5 . 4 . . . . 3 . 5 . 11 . . . . 4 . . . . 4 1 2 9 Investigation 9 | . 1 . . . 1 . . . . . . . . 1 . 2 . . . . 1 . . . . 1 . 1 1 Extermination 15 | . . . . . . . 3 . . . . . . 2 . 3 . . . . 2 . . . . 3 1 . 1 Reinforcement 14 | . 2 . 1 . 1 . 1 . . . . 2 . 1 . 2 . . . . 1 . . . . . . 1 2 Assault 5 | . . . . . . . . . . . . . . 1 . 4 . . . . . . . . . . . . . Garrison 9 | . . . . . 3 . . . . . . 1 . . . . . . . . . . . . . . . . 5 Intercept . | . . . . . . . . . . . . . . . . . . . . . . . . . . . . . . Searches Triggered . | . . . . . . . . . . . . . . . . . . . . . . . . . . . . . . Data Miner Redirects 4 | . . . . . . . . . . . . . . . . 2 . . . . 1 . . . . . . . 1 Construction Impeded 1 | . . . . . . . . . . . . . . . . . . . . . . . . . . . . . 1 Haulers Reinforced 4 | . . . . . . . . . . . . 1 . 1 . . . . . . . . . . . . . 1 1 Active Scanning Responses . | . . . . . . . . . . . . . . . . . . . . . . . . . . . . . . Cargo Convoy Interrupts 1 | . . . . . . . . . . . . . . . . 1 . . . . . . . . . . . . . Stealth | -11 -10 -10 -9 -9 -8 -8 -7 -7 -7 -7 -6 -6 -6 -6 -6 -6 -6 -6 -6 -6 -5 -5 -5 -5 -4 -4 -3 -2 -1 --------- Run | Yrd Mat Min Mat Min Mat Gar Fac Low Low Dat Pro Fac Gar Fac Gar Fac Gar Fac Gar Fac Fac Upp Upp War Pro Fac Res Res Acc Distress Signals 25 | . 1 . 3 . 3 . 2 . . . . . . . . . . . . . 2 . . . . . 3 8 3 Communications Jammed . | . . . . . . . . . . . . . . . . . . . . . . . . . . . . . . Distress Signals . | . . . . . . . . . . . . . . . . . . . . . . . . . . . . . . Times Spotted 546 | . 21 5 27 16 18 22 20 4 9 . 8 5 18 37 19 30 31 3 15 2 17 9 12 61 . 26 19 24 68 Peak Tracking Total 18 | . 3 3 5 16 6 4 5 4 5 . 4 4 4 6 7 6 7 3 7 1 9 5 5 18 . 3 8 6 8 Tactical Retreats 42 | . 1 . 3 . 2 1 2 . . . . . . 6 5 3 2 . . . 1 3 . . . 2 2 1 8 Traps | -11 -10 -10 -9 -9 -8 -8 -7 -7 -7 -7 -6 -6 -6 -6 -6 -6 -6 -6 -6 -6 -5 -5 -5 -5 -4 -4 -3 -2 -1 ------- Run | Yrd Mat Min Mat Min Mat Gar Fac Low Low Dat Pro Fac Gar Fac Gar Fac Gar Fac Gar Fac Fac Upp Upp War Pro Fac Res Res Acc Traps Triggered 20 | . 1 . 2 . . 1 . . . . . . 1 . . 4 5 1 . 1 2 . . . . 2 . . . Indirectly . | . . . . . . . . . . . . . . . . . . . . . . . . . . . . . . Trap Hack Attempts . | . . . . . . . . . . . . . . . . . . . . . . . . . . . . . . Triggered . | . . . . . . . . . . . . . . . . . . . . . . . . . . . . . . Disarmed . | . . . . . . . . . . . . . . . . . . . . . . . . . . . . . . Reprogrammed . | . . . . . . . . . . . . . . . . . . . . . . . . . . . . . . Reused 1 | . . . . . . . . . . . . . 1 . . . . . . . . . . . . . . . . Traps Extracted . | . . . . . . . . . . . . . . . . . . . . . . . . . . . . . . Installed 8 | . . . . . . . . . . . . . 8 . . . . . . . . . . . . . . . . Triggered 13 | . . . . . 1 . . . . . . . 1 . . 2 . . . . . 1 . 8 . . . . . Most Traps Carried 3 | . . . . . . . . . . . . . 3 . . . . . . . . . . . . . . . . Machines | -11 -10 -10 -9 -9 -8 -8 -7 -7 -7 -7 -6 -6 -6 -6 -6 -6 -6 -6 -6 -6 -5 -5 -5 -5 -4 -4 -3 -2 -1 ---------- Run | Yrd Mat Min Mat Min Mat Gar Fac Low Low Dat Pro Fac Gar Fac Gar Fac Gar Fac Gar Fac Fac Upp Upp War Pro Fac Res Res Acc Machines Disabled 41 | . . 1 . . . 3 2 . . . . . 7 2 3 4 5 . 4 . 1 . . . . 3 . 3 3 Max in Single Turn 2 | . . 1 . . . 1 1 . . . . . 1 1 1 2 1 . 2 . 1 . . . . 2 . 1 1 Garrison Access 4 | . . . . . . . . . . . . . . . . . . . . . . . . . . . 1 3 . Garrison Relay 7 | . . . . . . 1 . . . . . . 1 . 2 . 3 . . . . . . . . . . . . Machines Repaired . | . . . . . . . . . . . . . . . . . . . . . . . . . . . . . . Machines Dismantled . | . . . . . . . . . . . . . . . . . . . . . . . . . . . . . . Machines Sabotaged . | . . . . . . . . . . . . . . . . . . . . . . . . . . . . . . Overloaded Fab Kills . | . . . . . . . . . . . . . . . . . . . . . . . . . . . . . . Hacking | -11 -10 -10 -9 -9 -8 -8 -7 -7 -7 -7 -6 -6 -6 -6 -6 -6 -6 -6 -6 -6 -5 -5 -5 -5 -4 -4 -3 -2 -1 --------- Run | Yrd Mat Min Mat Min Mat Gar Fac Low Low Dat Pro Fac Gar Fac Gar Fac Gar Fac Gar Fac Fac Upp Upp War Pro Fac Res Res Acc Machines Accessed 80 | . 2 . 10 . 2 . 4 1 1 3 . 4 1 14 2 7 2 3 1 1 6 2 . 3 . 7 1 1 2 Terminals 46 | . 2 . 6 . 1 . 4 . . . . 1 1 8 2 4 2 1 1 1 4 . . . . 5 . 1 2 Fabricators 2 | . . . . . . . . . . . . . . 2 . . . . . . . . . . . . . . . Repair Stations 14 | . . . 2 . . . . . . . . 2 . 3 . 2 . 1 . . 2 . . . . 2 . . . Recycling Units . | . . . . . . . . . . . . . . . . . . . . . . . . . . . . . . Scanalyzers 2 | . . . 2 . . . . . . . . . . . . . . . . . . . . . . . . . . Garrison Access 6 | . . . . . 1 . . . . . . 1 . 1 . 1 . 1 . . . . . . . . 1 . . Total Hacks 183 | . 5 . 29 . 5 . 11 1 1 25 . 7 1 28 2 16 2 5 1 1 9 7 . 6 . 13 4 2 2 Successful 100 | . 2 . 17 . 1 . 1 1 1 25 . 3 . 14 1 6 2 2 1 . 3 7 . 6 . 6 1 . . Failed 83 | . 3 . 12 . 4 . 10 . . . . 4 1 14 1 10 . 3 . 1 6 . . . . 7 3 2 2 Catastrophic 18 | . . . 1 . 1 . 1 . . . . . 1 3 1 2 . 1 . 1 2 . . . . 1 . 1 2 Database Lockouts . | . . . . . . . . . . . . . . . . . . . . . . . . . . . . . . Manual 60 | . 5 . 20 . 1 . 3 . . . . 1 . 10 . 2 . 2 . 1 5 . . 1 . 7 . . 2 Terminals 94 | . 5 . 21 . 1 . 11 . . . . 2 1 18 2 8 2 2 1 1 6 . . . . 9 . 2 2 Fabricators 4 | . . . . . . . . . . . . . . 4 . . . . . . . . . . . . . . . Repair Stations 28 | . . . 4 . . . . . . . . 3 . 5 . 7 . 2 . . 3 . . . . 4 . . . Recycling Units . | . . . . . . . . . . . . . . . . . . . . . . . . . . . . . . Scanalyzers 4 | . . . 4 . . . . . . . . . . . . . . . . . . . . . . . . . . Garrison Access 13 | . . . . . 4 . . . . . . 2 . 1 . 1 . 1 . . . . . . . . 4 . . Terminal Hacks 54 | . . . 3 . . . . 1 1 25 . . . 4 1 1 2 . 1 . . 7 . 6 . 2 . . . Record 18 | . . . . . . . . . . 6 . . . . . . . . . . . 6 . 6 . . . . . Part Schematic 10 | . . . . . . . . . . 10 . . . . . . . . . . . . . . . . . . . Robot Schematic 6 | . . . . . . . . . . 6 . . . . . . . . . . . . . . . . . . . Prototype ID Bank 3 | . . . . . . . . . . 3 . . . . . . . . . . . . . . . . . . . Open Door 3 | . . . . . . . . 1 1 . . . . . . . . . . . . 1 . . . . . . . Emergency Access Points 2 | . . . . . . . . . . . . . . . . . 1 . 1 . . . . . . . . . . Garrison Index 1 | . . . . . . . . . . . . . . 1 . . . . . . . . . . . . . . . Alert Level 1 | . . . . . . . . . . . . . . . . . . . . . . . . . . 1 . . . Unreport Threat 4 | . . . 2 . . . . . . . . . . 2 . . . . . . . . . . . . . . . Locate Traps 3 | . . . 1 . . . . . . . . . . 1 . 1 . . . . . . . . . . . . . Zone Layout 1 | . . . . . . . . . . . . . . . . . . . . . . . . . . 1 . . . Garrison Registry 1 | . . . . . . . . . . . . . . . . . 1 . . . . . . . . . . . . Security Stations 1 | . . . . . . . . . . . . . . . 1 . . . . . . . . . . . . . . Fabricator Hacks 3 | . . . . . . . . . . . . . . 3 . . . . . . . . . . . . . . . Load Schematic 2 | . . . . . . . . . . . . . . 2 . . . . . . . . . . . . . . . Build 1 | . . . . . . . . . . . . . . 1 . . . . . . . . . . . . . . . Repair Station Hacks 17 | . . . 3 . . . . . . . . 2 . 3 . 4 . 1 . . 2 . . . . 2 . . . Scan Component 10 | . . . 2 . . . . . . . . 1 . 2 . 2 . 1 . . 1 . . . . 1 . . . Repair 7 | . . . 1 . . . . . . . . 1 . 1 . 2 . . . . 1 . . . . 1 . . . Recycling Unit Hacks . | . . . . . . . . . . . . . . . . . . . . . . . . . . . . . . Scanalyzer 2 | . . . 2 . . . . . . . . . . . . . . . . . . . . . . . . . . Insert Component 2 | . . . 2 . . . . . . . . . . . . . . . . . . . . . . . . . . Garrison Access Hacks 6 | . . . . . 1 . . . . . . 1 . 1 . 1 . 1 . . . . . . . . 1 . . Unlock Access 5 | . . . . . 1 . . . . . . 1 . 1 . 1 . 1 . . . . . . . . . . . Seal Access 1 | . . . . . . . . . . . . . . . . . . . . . . . . . . . 1 . . Unauthorized Hacks 18 | . 2 . 9 . . . 1 . . . . . . 3 . . . . . . 1 . . . . 2 . . . Terminals 17 | . 2 . 9 . . . 1 . . . . . . 3 . . . . . . 1 . . . . 1 . . . Botnet 11 | . 1 . 4 . . . 1 . . . . . . 3 . . . . . . 1 . . . . 1 . . . Skim 6 | . 1 . 5 . . . . . . . . . . . . . . . . . . . . . . . . . . Fabricators . | . . . . . . . . . . . . . . . . . . . . . . . . . . . . . . Repair Stations 1 | . . . . . . . . . . . . . . . . . . . . . . . . . . 1 . . . Mechanics 1 | . . . . . . . . . . . . . . . . . . . . . . . . . . 1 . . . Recycling Units . | . . . . . . . . . . . . . . . . . . . . . . . . . . . . . . Scanalyzers . | . . . . . . . . . . . . . . . . . . . . . . . . . . . . . . Garrison Access . | . . . . . . . . . . . . . . . . . . . . . . . . . . . . . . Data Cores Recovered 2 | . . . . . . . . . . . . . . 1 . . . . . . . . . . . 1 . . . Used 1 | . . . . . . . . . . . . . . 1 . . . . . . . . . . . . . . . Hacking Detections 64 | . 2 . 9 . 2 . 4 . . . . 4 1 13 2 5 1 3 1 1 6 . . . . 6 1 1 2 Full Trace Events 5 | . . . . . 1 . . . . . . . . 1 . 1 . . . . . . . . . 1 . 1 . Feedback Events . | . . . . . . . . . . . . . . . . . . . . . . . . . . . . . . Feedback Blocked . | . . . . . . . . . . . . . . . . . . . . . . . . . . . . . . Robot Schematics Acquired 6 | . . . . . . . . . . 6 . . . . . . . . . . . . . . . . . . . Robots Built 2 | . . . . . . . . . . . . . . 2 . . . . . . . . . . . . . . . Authchips . | . . . . . . . . . . . . . . . . . . . . . . . . . . . . . . Time 67 | . . . . . . . . . . . . . . 67 . . . . . . . . . . . . . . . Total Robot Build Rating 8 | . . . . . . . . . . . . . . 8 . . . . . . . . . . . . . . . Part Schematics Acquired 10 | . . . . . . . . . . 10 . . . . . . . . . . . . . . . . . . . Parts Built . | . . . . . . . . . . . . . . . . . . . . . . . . . . . . . . Authchips . | . . . . . . . . . . . . . . . . . . . . . . . . . . . . . . Time . | . . . . . . . . . . . . . . . . . . . . . . . . . . . . . . Total Part Build Rating . | . . . . . . . . . . . . . . . . . . . . . . . . . . . . . . Parts Repaired 7 | . . . 1 . . . . . . . . 1 . 1 . 2 . . . . 1 . . . . 1 . . . Time 349 | . . . 136 . . . . . . . . 25 . 28 . 58 . . . . 68 . . . . 34 . . . Parts Recycled . | . . . . . . . . . . . . . . . . . . . . . . . . . . . . . . Recycled Matter . | . . . . . . . . . . . . . . . . . . . . . . . . . . . . . . Retrieved Matter . | . . . . . . . . . . . . . . . . . . . . . . . . . . . . . . Retrieved Components . | . . . . . . . . . . . . . . . . . . . . . . . . . . . . . . Parts Scanalyzed 1 | . . . 1 . . . . . . . . . . . . . . . . . . . . . . . . . . Part Schematics Acquired . | . . . . . . . . . . . . . . . . . . . . . . . . . . . . . . Parts Damaged . | . . . . . . . . . . . . . . . . . . . . . . . . . . . . . . Bothacking | -11 -10 -10 -9 -9 -8 -8 -7 -7 -7 -7 -6 -6 -6 -6 -6 -6 -6 -6 -6 -6 -5 -5 -5 -5 -4 -4 -3 -2 -1 ------------ Run | Yrd Mat Min Mat Min Mat Gar Fac Low Low Dat Pro Fac Gar Fac Gar Fac Gar Fac Gar Fac Fac Upp Upp War Pro Fac Res Res Acc Used RIF Installer . | . . . . . . . . . . . . . . . . . . . . . . . . . . . . . . Robots Hacked . | . . . . . . . . . . . . . . . . . . . . . . . . . . . . . . Non-combat . | . . . . . . . . . . . . . . . . . . . . . . . . . . . . . . Combat . | . . . . . . . . . . . . . . . . . . . . . . . . . . . . . . Robot Hacks Applied . | . . . . . . . . . . . . . . . . . . . . . . . . . . . . . . Relay Couplers Released 34 | . . . . . . 3 . . . . . . 5 . 11 . 14 . . . . . . . . . . 1 . Machine Destruction 31 | . . . . . . 3 . . . . . . 5 . 8 . 14 . . . . . . . . . . 1 . Programmers 3 | . . . . . . . . . . . . . . . 3 . . . . . . . . . . . . . . Fabnet Peak Effective % . | . . . . . . . . . . . . . . . . . . . . . . . . . . . . . . Robots Rewired 6 | . . . . . . . . . . . . . 1 . . . . . . . . . . 5 . . . . . Allies Hacked 1 | . . . . . . . . . . . . . . . . . . . . . . . . 1 . . . . . Hacks Repelled . | . . . . . . . . . . . . . . . . . . . . . . . . . . . . . . Allies | -11 -10 -10 -9 -9 -8 -8 -7 -7 -7 -7 -6 -6 -6 -6 -6 -6 -6 -6 -6 -6 -5 -5 -5 -5 -4 -4 -3 -2 -1 -------- Run | Yrd Mat Min Mat Min Mat Gar Fac Low Low Dat Pro Fac Gar Fac Gar Fac Gar Fac Gar Fac Fac Upp Upp War Pro Fac Res Res Acc Total Allies 11 | . . . . . . . . . . . . . 1 2 . . 3 . . . . . . 5 . . . . . Largest Group 5 | . . . . . . . . . . . . . 1 3 . . 2 2 1 1 . . . 5 . . . . . Highest-Rated Group 261 | . . . . . . . . . . . . . 148 228 . . 175 175 95 95 . . . 261 . . . . . Highest-Rated Ally 148 | . . . . . . . . . . . . . 148 148 . . 95 95 95 95 . . . 65 . . . . . Warlord Squad Rendezvous 6 | . . . . . . . . . . . . . . 3 . 2 . 1 . . . . . . . . . . . Geek 1 | . . . . . . . . . . . . . . . . 1 . . . . . . . . . . . . . Ranger 1 | . . . . . . . . . . . . . . . . . . 1 . . . . . . . . . . . Pyro 2 | . . . . . . . . . . . . . . 1 . 1 . . . . . . . . . . . . . Chimera 2 | . . . . . . . . . . . . . . 2 . . . . . . . . . . . . . . . Total Orders . | . . . . . . . . . . . . . . . . . . . . . . . . . . . . . . Ally Attacks 110 | . . . . . . . . . . . . . 25 35 . . 3 1 28 . . . . 18 . . . . . Total Damage 3776 | . . . . . . . . . . . . . 897 850 . . 93 41 1059 . . . . 836 . . . . . Kills 12 | . . . . . . . . . . . . . 1 4 . . 1 . 6 . . . . . . . . . . Allies Corrupted 1 | . . . . . . . . . . . . . . . . . . 1 . . . . . . . . . . . Allies Melted 7 | . . . . . . . . . . . . . . 1 . . . . . . . . . . . . . 6 . Intel | -11 -10 -10 -9 -9 -8 -8 -7 -7 -7 -7 -6 -6 -6 -6 -6 -6 -6 -6 -6 -6 -5 -5 -5 -5 -4 -4 -3 -2 -1 ------- Run | Yrd Mat Min Mat Min Mat Gar Fac Low Low Dat Pro Fac Gar Fac Gar Fac Gar Fac Gar Fac Fac Upp Upp War Pro Fac Res Res Acc Robot Analysis Total . | . . . . . . . . . . . . . . . . . . . . . . . . . . . . . . Derelict Logs Recovered 11 | . . 3 . . . . . 2 2 . 1 . . . . . . . . . . 2 1 . . . . . . Drone Launches . | . . . . . . . . . . . . . . . . . . . . . . . . . . . . . . Drone Recoveries . | . . . . . . . . . . . . . . . . . . . . . . . . . . . . . . Exploration | -11 -10 -10 -9 -9 -8 -8 -7 -7 -7 -7 -6 -6 -6 -6 -6 -6 -6 -6 -6 -6 -5 -5 -5 -5 -4 -4 -3 -2 -1 ------------- Run | Yrd Mat Min Mat Min Mat Gar Fac Low Low Dat Pro Fac Gar Fac Gar Fac Gar Fac Gar Fac Fac Upp Upp War Pro Fac Res Res Acc Turns Passed 30606 | 138 1164 941 1747 238 308 1059 1293 672 1181 133 566 644 2101 2132 1797 1573 1720 293 420 309 1312 1151 1332 929 591 1481 1009 1569 803 Spaces Moved 15311 | 73 585 560 753 84 124 552 694 394 616 80 303 342 1096 1068 996 755 835 169 182 175 603 545 636 511 319 658 468 841 294 Core 21 | 20 . . . . . . . . 1 . . . . . . . . . . . . . . . . . . . . Treads 13448 | 53 585 560 503 84 124 552 694 394 615 80 303 342 1096 1068 996 755 835 169 182 175 570 . . 133 319 658 468 841 294 Legs 1807 | . . . 215 . . . . . . . . . . . . . . . . . 33 545 636 378 . . . . . Wheels 35 | . . . 35 . . . . . . . . . . . . . . . . . . . . . . . . . . Hover . | . . . . . . . . . . . . . . . . . . . . . . . . . . . . . . Flight . | . . . . . . . . . . . . . . . . . . . . . . . . . . . . . . Fastest Speed 50 | 50 160 160 130 240 160 155 155 155 155 160 160 156 156 160 160 160 160 163 165 165 165 190 190 112 170 170 170 165 160 Average Speed 166 | 152 160 160 199 240 161 157 155 155 164 160 160 161 157 160 160 160 164 163 165 165 170 190 190 143 170 170 183 165 161 Slowest Speed 1000 | 250 160 160 240 240 240 160 155 155 1000 160 160 240 160 160 160 160 250 165 165 165 320 190 190 190 170 250 250 170 166 Overloaded Moves . | . . . . . . . . . . . . . . . . . . . . . . . . . . . . . . Propulsion Burnouts . | . . . . . . . . . . . . . . . . . . . . . . . . . . . . . . Robots Hopped 1 | . . . . . . . . . . . . . . . . . . . . . . . . . . . . 1 . Cave-ins Triggered 2 | . . . . . . . . 1 . . . . . . . . . . . . . . . . . . 1 . . Exploration Rate (%) 42 | 4 80 99 49 13 14 56 22 58 63 68 51 13 75 33 60 25 76 6 29 8 19 68 73 61 63 15 16 29 14 Regions Visited 29 Branch Regions 10 Pre-discovered Areas 9 | . . 1 3 . . . . 1 2 1 . . . . . . . . . . . . 1 . . . . . . Known Exits Taken 17 | . . . 1 1 1 . 1 1 . . 1 1 . 1 . 1 . 1 . 1 1 1 1 1 1 1 . . . Unknown Exits Taken 7 | 1 1 1 . . . . . . 1 1 . . . . . . . . . . . . . . . . 1 1 . Scrap Searched 12 | . . 1 . 1 . . . 2 3 . 1 . . . . . . . . . . 3 1 . . . . . . Spaces Dug 192 | . . . . . 1 1 4 18 23 . 1 8 5 1 2 9 1 1 4 3 16 19 20 . 18 17 17 2 1 Terrain Destroyed 1086 | . . 18 32 42 40 38 5 32 72 . 9 8 14 7 56 111 43 1 26 3 28 78 74 56 19 54 31 38 151 Melee 87 | . . . . . 1 1 4 . . . 1 8 5 1 2 9 1 1 . 3 16 . . . . 17 17 . . Projectile 202 | . . . 1 1 . . 1 21 34 . . . . 6 1 . . . . . . . 20 . 19 22 14 17 45 AOE 797 | . . 18 31 41 39 37 . 11 38 . 8 . 9 . 53 102 42 . 26 . 12 78 54 56 . 15 . 21 106 Terrain Rammed . | . . . . . . . . . . . . . . . . . . . . . . . . . . . . . . Walls Destroyed . | . . . . . . . . . . . . . . . . . . . . . . . . . . . . . . Machines Disabled . | . . . . . . . . . . . . . . . . . . . . . . . . . . . . . . Actions | -11 -10 -10 -9 -9 -8 -8 -7 -7 -7 -7 -6 -6 -6 -6 -6 -6 -6 -6 -6 -6 -5 -5 -5 -5 -4 -4 -3 -2 -1 --------- Run | Yrd Mat Min Mat Min Mat Gar Fac Low Low Dat Pro Fac Gar Fac Gar Fac Gar Fac Gar Fac Fac Upp Upp War Pro Fac Res Res Acc Total 18429 | 89 710 591 929 111 181 644 831 431 703 86 351 401 1346 1311 1126 1019 1011 181 246 186 805 632 693 661 348 886 548 928 444 Wait 1112 | . 40 8 79 19 4 22 54 7 9 . 24 11 65 111 63 158 32 1 29 1 96 54 1 39 9 104 6 21 45 Move 15281 | 72 584 559 752 83 124 550 693 393 615 79 302 342 1095 1067 993 755 834 169 181 174 602 544 635 510 318 657 467 838 294 Hop 1 | . . . . . . . . . . . . . . . . . . . . . . . . . . . . 1 . Pick Up 179 | 6 12 4 17 . 7 5 7 2 13 1 1 5 27 7 2 8 16 . . 1 5 2 . 3 . 9 6 10 3 Fast Attach 107 | 7 . . 3 . 2 . 4 . 3 1 . 5 8 5 3 3 9 1 . . 11 3 1 14 . 11 1 8 4 Attach 81 | . . . 5 . 3 1 2 . 6 2 . 2 5 . 1 2 6 1 . . 5 . 1 6 . 7 11 3 12 Detach 32 | . . . . . 2 . 1 . . 1 . 1 4 . . . . 1 . . 4 . 1 1 . 8 5 3 . Swap 308 | . 12 7 17 2 9 13 19 5 8 . 6 6 15 17 15 34 15 6 9 3 19 11 16 10 3 15 7 5 4 Drop 215 | . 8 4 20 . 6 4 12 2 10 2 . 8 30 15 10 11 18 1 . 1 12 5 . 15 . 5 4 8 4 Fire 855 | 4 50 8 35 7 23 32 27 22 39 . 15 11 45 84 34 37 71 . 27 2 21 13 38 20 18 45 19 31 77 Melee 185 | . . . . . 1 17 10 . . . 3 10 43 1 5 10 10 1 . 4 20 . . 4 . 25 21 . . Ram . | . . . . . . . . . . . . . . . . . . . . . . . . . . . . . . Kick . | . . . . . . . . . . . . . . . . . . . . . . . . . . . . . . Crush 25 | . 4 1 1 . . . 2 . . . . . . 4 . 1 . . . . 10 . . . . . 1 . 1 Escape Stasis . | . . . . . . . . . . . . . . . . . . . . . . . . . . . . . . Rewire 40 | . . . . . . . . . . . . . 1 . . . . . . . . . . 39 . . . . . Trap 8 | . . . . . . . . . . . . . 8 . . . . . . . . . . . . . . . . Miscellaneous . | . . . . . . . . . . . . . . . . . . . . . . . . . . . . . . Route ------- -11/Scrapyard -10/Materials (discovered 4 exits: *Mat x3 / [*Min]) -10/Mines (discovered 4 exits: *Mat x2 / [*Exi] / [*Sub]) -9/Materials (discovered 5 exits: *Mat x3 / *Min x2) -9/Mines (discovered 2 exits: *Mat x2) -8/Materials (discovered 4 exits: Fac / *Sto x2 / Gar) -8/Garrison (discovered 3 exits: *Fac x3) -7/Factory (discovered 3 exits: *Fac x2 / *Low) -7/Lower Caves -7/Lower Caves -7/Data Miner -6/Proximity Caves -6/Factory (discovered 3 exits: *Fac x2 / Gar) -6/Garrison (discovered 3 exits: *Fac x3) -6/Factory (discovered 2 exits: *Fac / Gar) -6/Garrison (discovered 3 exits: *Fac x3) -6/Factory (discovered 2 exits: *Low / Gar) -6/Garrison (discovered 3 exits: *Fac x3) -6/Factory (discovered 2 exits: *Low / Gar) -6/Garrison -6/Factory -5/Factory -5/Upper Caves -5/Upper Caves (discovered 2 exits: *Fac / *War) -5/Warlord -4/Proximity Caves -4/Factory -3/Research -2/Research -1/Access History --------- Turn | Location | Event 24 | -11/Scrapyard | Discovered new exit (range 15) 139 | -11/Scrapyard | Entered Materials 308 | -10/Materials | Build established: Mutant 455 | -10/Materials | Discovered new exit (range 16) 761 | -10/Materials | Discovered new exit (range 9) 1030 | -10/Materials | Discovered new exit (range 13) 1131 | -10/Materials | Discovered new exit (range 16) 1303 | -10/Materials | Entered Mines 1527 | -10/Mines | Found a hidden stash of uninstalled traps 1643 | -10/Mines | Discovered new exit (range 9) 1776 | -10/Mines | Learned location of 1 exit from Materials 1929 | -10/Mines | Learned location of Zion (-6) 1953 | -10/Mines | Found a damaged Exp. Sensor Array with a note attached 1958 | -10/Mines | Found Prototype Device 1959 | -10/Mines | Identified Exp. Sensor Array 2018 | -10/Mines | Deemed a non-threat by the Exiles lab entrance 2018 | -10/Mines | Discovered new exit (range 5) 2031 | -10/Mines | Discovered new exit (range 10) 2038 | -10/Mines | Received a Rocket Launcher from a helpful Derelict 2082 | -10/Mines | Learned Materials machine intel 2218 | -10/Mines | Discovered new exit (range 15) 2244 | -10/Mines | Entered Materials 2244 | -9/Materials | Evolved 2 slots: Utility x1, Weapon x1 2245 | -9/Materials | Identified exit to Materials 2246 | -9/Materials | Loaded intel: 68 machine locations 2672 | -9/Materials | Discovered new exit (range 8) 2769 | -9/Materials | Discovered exit to Materials (range 14) 2788 | -9/Materials | Build established: Tank 3043 | -9/Materials | Learned 4 Recycling zone layouts 3188 | -9/Materials | Learned location of 2 exits from Materials 3198 | -9/Materials | Learned 4 Recycling zone layouts 3210 | -9/Materials | Identified exit to Mines 3312 | -9/Materials | Learned 2 Storage zone layouts 3652 | -9/Materials | Repaired Broken Exp. Sensor Array 3991 | -9/Materials | Entered Mines 3992 | -9/Mines | Assembled infested the area 3997 | -9/Mines | Assisted by a Guerilla fighting off Assembled 4047 | -9/Mines | Destroyed 18 combat bots 4229 | -9/Mines | Entered Materials 4229 | -8/Materials | Evolved 2 slots: Propulsion x1, Utility x1 4230 | -8/Materials | Identified exit to Storage 4231 | -8/Materials | Identified exit to Factory 4331 | -8/Materials | Garrison activated, responded to threat 4537 | -8/Materials | Identified exit to Garrison 4537 | -8/Materials | Entered Garrison 4629 | -8/Garrison | Triggered checkpoint 4637 | -8/Garrison | Triggered checkpoint 4734 | -8/Garrison | Discovered exit to Factory (range 12) 4963 | -8/Garrison | Discovered exit to Factory (range 15) 5059 | -8/Garrison | Garrison Relay disabled 5337 | -8/Garrison | Triggered checkpoint 5402 | -8/Garrison | Discovered exit to Factory (range 9) 5409 | -8/Garrison | Triggered checkpoint 5447 | -8/Garrison | Attempted to access garrison exit controls, blocked by remote lockdown 5596 | -8/Garrison | Entered Factory 5596 | -7/Factory | Evolved 2 slots: Utility x2 5721 | -7/Factory | Discovered new exit (range 8) 5732 | -7/Factory | Identified exit to Factory 6043 | -7/Factory | Build established: Mutant 6484 | -7/Factory | Discovered exit to Factory (range 12) 6877 | -7/Factory | Discovered new exit (range 9) 6888 | -7/Factory | Identified exit to Lower Caves 6889 | -7/Factory | Entered Lower Caves 6932 | -7/Lower Caves | Met a Warlord Commander 6933 | -7/Lower Caves | Learned location of Warlord (-5) 6934 | -7/Lower Caves | Warlord Commander delivered Encrypted Comm Array 6939 | -7/Lower Caves | Found Encrypted Comm Array 6993 | -7/Lower Caves | Crushed by falling debris 7266 | -7/Lower Caves | Build established: Skirmisher 7376 | -7/Lower Caves | Identified exit to Lower Caves 7561 | -7/Lower Caves | Entered another Lower Caves area 7561 | -7/Lower Caves | Spotted B-75 Beast 7645 | -7/Lower Caves | Destroyed B-75 Beast 7662 | -7/Lower Caves | Lost 6 parts (3n2u1w) 8156 | -7/Lower Caves | Found DRS Beacon 8213 | -7/Lower Caves | Build established: Gunner 8657 | -7/Lower Caves | Discovered new exit (range 15) 8742 | -7/Lower Caves | Entered Data Miner 8742 | -7/Data Miner | Discovered new exit (range 6) 8774 | -7/Data Miner | Met Data Miner 8802 | -7/Data Miner | Learned location of Section 7 (-3) 8802 | -7/Data Miner | Acquired the access code to Warlord's prototype stash 8824 | -7/Data Miner | Received God Mode back door access code from Data Miner 8875 | -7/Data Miner | Entered Proximity Caves 9262 | -6/Proximity Caves | Attracted the attention of an 0b10 checkpoint 9331 | -6/Proximity Caves | Discovered exit to Factory (range 10) 9374 | -6/Proximity Caves | Learned Factory emergency access door positions 9441 | -6/Proximity Caves | Entered Factory 9441 | -6/Factory | Evolved 2 slots: Propulsion x1, Utility x1 9554 | -6/Factory | Discovered new exit (range 14) 9771 | -6/Factory | Repaired Imp. Medium Treads 9868 | -6/Factory | Build established: Mutant 9894 | -6/Factory | Discovered new exit (range 7) 9981 | -6/Factory | Garrison activated, responded to threat 10085 | -6/Factory | Identified exit to Garrison 10085 | -6/Factory | Entered Garrison 10181 | -6/Garrison | Spotted B-75 Beast 10230 | -6/Garrison | Destroyed B-75 Beast 10318 | -6/Garrison | Triggered checkpoint 10461 | -6/Garrison | Discovered new exit (range 10) 10551 | -6/Garrison | Triggered checkpoint 10690 | -6/Garrison | Discovered new exit (range 11) 10837 | -6/Garrison | Triggered checkpoint 10873 | -6/Garrison | Garrison Relay disabled 11026 | -6/Garrison | Triggered checkpoint 11318 | -6/Garrison | Discovered new exit (range 11) 11401 | -6/Garrison | Triggered checkpoint 11421 | -6/Garrison | Spotted B-86 Titan 11443 | -6/Garrison | Rewired B-90 Cyclops 11479 | -6/Garrison | Allies destroyed B-86 Titan 11540 | -6/Garrison | Found Quantum Capacitor 11888 | -6/Garrison | Build established: Tank 12186 | -6/Garrison | Entered Factory 12186 | -6/Factory | Accompanied by 1 ally 12302 | -6/Factory | Build established: Scavenger-Tank 12370 | -6/Factory | Joined by Warlord Chimera squad 12536 | -6/Factory | First assault squad dispatched 12610 | -6/Factory | Fabricated X-62 Marksman? 12738 | -6/Factory | Joined by Warlord Chimera squad 13122 | -6/Factory | Repaired Hvy. Treads 13515 | -6/Factory | Build established: Tank 13718 | -6/Factory | Discovered new exit (range 8) 14111 | -6/Factory | Identified exit to Garrison 14166 | -6/Factory | Joined by Warlord Pyro squad 14318 | -6/Factory | Entered Garrison 14464 | -6/Garrison | Triggered checkpoint 14712 | -6/Garrison | Discovered new exit (range 12) 14904 | -6/Garrison | Triggered checkpoint 15197 | -6/Garrison | Garrison Relay disabled 15227 | -6/Garrison | Discovered new exit (range 15) 15364 | -6/Garrison | Build established: Scavenger-Tank 15418 | -6/Garrison | Triggered checkpoint 15466 | -6/Garrison | Garrison Relay disabled 15687 | -6/Garrison | Identified exit to Factory 15689 | -6/Garrison | Attempted to access garrison exit controls, blocked by remote lockdown 15839 | -6/Garrison | Attempted to access garrison exit controls, blocked by remote lockdown 15924 | -6/Garrison | Triggered checkpoint 16081 | -6/Garrison | Discovered exit to Factory (range 15) 16107 | -6/Garrison | Learned Factory security intel 16115 | -6/Garrison | Entered Factory 16175 | -6/Factory | Repaired Hvy. Treads 16175 | -6/Factory | Incoming investigation squad redirected 16272 | -6/Factory | Joined by Warlord Pyro squad 16289 | -6/Factory | Repaired Broken Imp. Shield Generator 16465 | -6/Factory | First assault squad dispatched 16684 | -6/Factory | Core integrity fell below 50% 16757 | -6/Factory | Joined by Warlord Geek squad 16783 | -6/Factory | Incoming investigation squad redirected 16976 | -6/Factory | Build established: Scavenger-Mutant 17053 | -6/Factory | Lost 3 allies 17288 | -6/Factory | Discovered new exit (range 13) 17310 | -6/Factory | Identified exit to Lower Caves 17320 | -6/Factory | Cargo convoy interrupted 17528 | -6/Factory | Build established: Scavenger-Skirmisher 17688 | -6/Factory | Identified exit to Garrison 17688 | -6/Factory | Entered Garrison 17824 | -6/Garrison | Spotted B-75 Beast 17867 | -6/Garrison | Destroyed B-75 Beast 17896 | -6/Garrison | Lost 3 parts (1n1u1w) 17941 | -6/Garrison | Spotted B-75 Beast 17952 | -6/Garrison | Destroyed B-75 Beast 18042 | -6/Garrison | Rescued a captive Derelict 18162 | -6/Garrison | Triggered checkpoint 18172 | -6/Garrison | Triggered checkpoint 18254 | -6/Garrison | Destroyed 13 combat bots 18264 | -6/Garrison | Build established: Scavenger-Tank 18311 | -6/Garrison | Discovered new exit (range 10) 18337 | -6/Garrison | Identified exit to Factory 18542 | -6/Garrison | System corruption reached 10% 18613 | -6/Garrison | Discovered exit to Factory (range 12) 18668 | -6/Garrison | Triggered checkpoint 18736 | -6/Garrison | Garrison Relay disabled 18750 | -6/Garrison | Found embedded Infiltrators 18848 | -6/Garrison | Triggered checkpoint 18897 | -6/Garrison | Discovered exit to Factory (range 9) 18928 | -6/Garrison | Triggered checkpoint 18969 | -6/Garrison | Garrison Relay disabled 19208 | -6/Garrison | Garrison Relay disabled 19305 | -6/Garrison | Discovered exit to Factory (range 47) 19305 | -6/Garrison | Discovered exit to Factory (range 70) 19305 | -6/Garrison | Discovered exit to Factory (range 43) 19408 | -6/Garrison | Entered Factory 19408 | -6/Factory | Accompanied by 2 allies 19467 | -6/Factory | Discovered exit to Lower Caves (range 16) 19573 | -6/Factory | Joined by Warlord Ranger squad 19700 | -6/Factory | Identified exit to Garrison 19701 | -6/Factory | Entered Garrison 19701 | -6/Garrison | Accompanied by 1 ally 19910 | -6/Garrison | Triggered checkpoint 19950 | -6/Garrison | Triggered checkpoint 20011 | -6/Garrison | Destroyed 7 combat bots 20023 | -6/Garrison | Triggered checkpoint 20077 | -6/Garrison | Discovered new exit (range 9) 20102 | -6/Garrison | Identified exit to Factory 20121 | -6/Garrison | Entered Factory 20121 | -6/Factory | Accompanied by 1 ally 20372 | -6/Factory | Discovered new exit (range 16) 20396 | -6/Factory | Identified exit to Factory 20430 | -6/Factory | Entered another Factory area 20430 | -5/Factory | Evolved 2 slots: Power x1, Utility x1 20431 | -5/Factory | Identified exit to Upper Caves 20604 | -5/Factory | Build established: Scavenger-Mutant 21281 | -5/Factory | Repaired Arm. Heavy Treads 21377 | -5/Factory | Incoming investigation squad redirected 21742 | -5/Factory | Entered Upper Caves 21816 | -5/Upper Caves | Build established: Skirmisher 21875 | -5/Upper Caves | Learned Factory non-interactive machine intel 21970 | -5/Upper Caves | Learned Factory stockpile data 21970 | -5/Upper Caves | Learned Research garrison access intel 21970 | -5/Upper Caves | Learned Armory garrison access intel 22239 | -5/Upper Caves | Attracted the attention of an 0b10 checkpoint 22708 | -5/Upper Caves | Discovered new exit (range 16) 22720 | -5/Upper Caves | Learned Factory emergency access door positions 22837 | -5/Upper Caves | Found Imp. Powered Armor 22849 | -5/Upper Caves | Identified exit to Upper Caves 22893 | -5/Upper Caves | Entered another Upper Caves area 22988 | -5/Upper Caves | Discovered new exit (range 8) 23085 | -5/Upper Caves | Build established: Tank 24208 | -5/Upper Caves | Discovered new exit (range 7) 24221 | -5/Upper Caves | Identified exit to Warlord 24225 | -5/Upper Caves | Entered Warlord 24288 | -5/Warlord | System corruption cleaned by Quarantine Array 24577 | -5/Warlord | Met Warlord 24588 | -5/Warlord | Opened Warlord's prototype stash 24600 | -5/Warlord | Found Prototype Device 24600 | -5/Warlord | Identified System Purifier 24602 | -5/Warlord | Warlord's base attacked by MAIN.C 24604 | -5/Warlord | Found Prototype Processor 24604 | -5/Warlord | Identified Exp. Core Analyzer 24616 | -5/Warlord | Found Prototype Reactor 24616 | -5/Warlord | Identified Vortex Chain Reactor 24654 | -5/Warlord | Learned Factory garrison access intel 24654 | -5/Warlord | Learned Armory repair station intel 24654 | -5/Warlord | Learned Research fabricator intel 24655 | -5/Warlord | Learned 4 Quarantine zone layouts 24656 | -5/Warlord | Learned Research trap positions 24656 | -5/Warlord | Learned Testing stockpile data 24747 | -5/Warlord | Build established: Commander-Mutant 24877 | -5/Warlord | Spotted B-86 Titan 24877 | -5/Warlord | Spotted B-75 Beast 24910 | -5/Warlord | Lost 3 allies 24945 | -5/Warlord | P-80 Master assimilated allied Archangel 6a 24952 | -5/Warlord | Warlord forces counterattacked 24964 | -5/Warlord | Spotted Executioner 24969 | -5/Warlord | Spotted B-75 Beast 24974 | -5/Warlord | Spotted Striker 24979 | -5/Warlord | Spotted B-86 Titan 24979 | -5/Warlord | Spotted Striker 24989 | -5/Warlord | Destroyed B-75 Beast 25021 | -5/Warlord | Lost 6 allies 25031 | -5/Warlord | Spotted Striker 25060 | -5/Warlord | Spotted Striker 25099 | -5/Warlord | Discovered new exit (range 15) 25103 | -5/Warlord | Spotted Striker 25103 | -5/Warlord | Spotted Executioner 25104 | -5/Warlord | Spotted Striker 25117 | -5/Warlord | System corruption reached 10% 25146 | -5/Warlord | Lost 5 parts (1n1u3w) 25151 | -5/Warlord | Identified exit to Proximity Caves 25154 | -5/Warlord | Entered Proximity Caves 25166 | -4/Proximity Caves | Lost 11 allies 25403 | -4/Proximity Caves | Build established: Scavenger-Skirmisher 25733 | -4/Proximity Caves | Discovered new exit (range 8) 25741 | -4/Proximity Caves | Identified exit to Factory 25745 | -4/Proximity Caves | Entered Factory 25745 | -4/Factory | Evolved 2 slots: Utility x1, Weapon x1 25748 | -4/Factory | Loaded intel: 215 non-interactive machine locations 25749 | -4/Factory | Loaded intel: 3 garrison access locations 26087 | -4/Factory | Build established: Scavenger-Tank 26279 | -4/Factory | Discovered new exit (range 12) 26298 | -4/Factory | Identified exit to Research 26486 | -4/Factory | Lost 3 parts (1u2w) 26687 | -4/Factory | System corruption reached 10% 26915 | -4/Factory | Build established: Scavenger-Gunner 27164 | -4/Factory | Repaired Arm. Heavy Treads 27226 | -4/Factory | Entered Research 27226 | -3/Research | Evolved 2 slots: Propulsion x1, Utility x1 27227 | -3/Research | Loaded intel: 85 trap records 27228 | -3/Research | Loaded intel: 4 fabricator locations 27229 | -3/Research | Loaded intel: 4 garrison access locations 28008 | -3/Research | Build established: Scavenger-Tank 28043 | -3/Research | Spotted B-86 Titan 28061 | -3/Research | Crushed by falling debris 28061 | -3/Research | System corruption reached 10% 28092 | -3/Research | Lost 3 parts (3u) 28149 | -3/Research | Destroyed B-86 Titan 28170 | -3/Research | Lost 3 parts (2p1u) 28203 | -3/Research | Discovered new exit (range 14) 28235 | -3/Research | Entered another Research area 28235 | -2/Research | Warlord forces began assault on 0b10 28235 | -2/Research | Evolved 2 slots: Utility x2 28260 | -2/Research | Distinguished unit "Offensive Angels" dispatched to help 28345 | -2/Research | Research machine network offline 28492 | -2/Research | Spotted Striker 28506 | -2/Research | Found Prototype Launcher 28539 | -2/Research | Lost 5 allies 28618 | -2/Research | Build established: Scavenger-Gunner 28799 | -2/Research | Spotted B-90 Cyclops 28807 | -2/Research | Destroyed B-90 Cyclops 28831 | -2/Research | Lost 4 allies 28880 | -2/Research | Borebot progress halted 28985 | -2/Research | Borebot progress halted 29042 | -2/Research | Spotted Striker 29051 | -2/Research | Destroyed Striker 29082 | -2/Research | Spotted B-90 Cyclops 29083 | -2/Research | Destroyed B-90 Cyclops 29097 | -2/Research | Build established: Gunner 29417 | -2/Research | Identified Ragnarok Missile Launcher 29552 | -2/Research | Spotted Executioner 29561 | -2/Research | Spotted Executioner 29574 | -2/Research | Destroyed Executioner 29578 | -2/Research | Destroyed Executioner 29599 | -2/Research | Found Exp. Core Analyzer 29636 | -2/Research | Spotted Striker 29636 | -2/Research | Spotted Executioner 29648 | -2/Research | Destroyed Striker 29656 | -2/Research | Destroyed Executioner 29677 | -2/Research | Destroyed 7 combat bots 29792 | -2/Research | Discovered new exit (range 8) 29804 | -2/Research | Entered Access 29804 | -1/Access | Evolved 2 slots: Utility x2 29863 | -1/Access | Incoming investigation squad redirected 30154 | -1/Access | Lost 3 allies 30438 | -1/Access | Destroyed 13 combat bots 30439 | -1/Access | Lost 9 parts (2n6u1w) 30447 | -1/Access | Garrison activated, responded to threat 30543 | -1/Access | Lost 3 parts (1n2w) 30607 | -1/Access | Self-destructed Last Messages --------------- 30599_ The unstable cave ceiling collapses. 30599_ Destroyed Myomer Leg. 30599_ Ragnarok Missile Launcher destroyed. 30599_ Destroyed Ragnarok Missile Launcher. 30600_ The unstable cave ceiling collapses. 30601_ G-73 Enforcer knocked back. 30602_ U-05 Engineer builds a Wall. 30603_ C-30 ARC bursts open, deploying its payload. 30603_ P-80 Master unfolds itself. 30604_ The unstable cave ceiling collapses. 30604_ Coolant Network destroyed. 30605_ The unstable cave ceiling collapses. 30605_ 2 Matter crushed. 30605_ The unstable cave ceiling collapses. 30605_ Destroyed Adv. Heat Sink. 30605_ G-73 Enforcer destroyed. 30606_ U-05 Engineer lays Concrete. 30607_ U-05 Engineer builds a Wall. 30607_ Com. Linear Accelerator destroyed. Map ----- +----------------------------------------------------+ | ?????????????????????????????????????????????????? | | ?????????????????????????????????????????????????? | | ?????????????????????????????????????????????????? | | ?????????????????????????????????????????????????? | | ?????????????????????????????????????????????????? | | ?????????????????????????????????????????????????? | | ?????????????????????????????????????????????????? | | ?????????????????????????????????????????????????? | | ?????????????????????????????????????????????????? | | ?????????????????????????????????????????????????? | | ?????????????????????????????????????????????????? | | ????????????????????##########???????????????????? | | ?????????????????? #??????????????????? | | ?????????????????# #??????????????? | | ?????????????????# #??????????????# | | ?????????????????# #??????????????# | | ?????????????????# #??????????????# | | ?????????????????# #???????? ???# | | ?????????????????# == #???????? ??# | | ???????????? ????# % == #???????? ?# | | ???????????? Y ??# = #???????? ?# | | ??????????? u # #????????? # | | ??????????? k ????????? # | | ?????????? ????????????? " | | ?????????? # # #################+### | | ???????? w % @ u [%[ %%! | | ???????? % R #############!= % [% | | ?????????? # ## #?????????# % % | | ??????????? # ## ##?????????# %% | | ???????????# ## ###??????????####+######+ | | ???????????? ? ####?????????????# " | | ???????????? ? ?????????????????# # | | ????????????? ??????????????????# " # | | ????????????? pp#???????????????????# """ # | | ?????????????###% ????????????????????# """ # | | ???????????????# ?????????????????????# " # | | ???????????????#??????????????????????# # | | ??????????????????????????????????????# # | | ??????????????????????????????????????# ! # | | ??????????????????????????????????????########## | | ???????????????????????????????????????????????# | | ???????????????????????????????????????????????# | | ???????????????????????????????????????????????? | | ???????????????????????????????????????????????? | | ????????????????????????????????????????????????## | | ?????????????????????????????????????????????????? | | ?????????????????????????????????????????????????? | | ?????????????????????????????????????????????????? | | ?????????????????????????????????????????????????? | | ?????????????????????????????????????????????????? | +----------------------------------------------------+ Best States ------------- Heat Dissipation 180 Coolant Potential 80 Energy Generation 45 Energy Capacity 565 Matter Stores 590 Matter Capacity 700 Sight Range 23 Robot Scan Range 20 Terrain Scan Density 10 Jamming Range 16 Base Temperature (-) 200 Corruption Block 20 Armor Coverage 1250 Resistance: TH 15 Core Shielding 30 Propulsion Shielding 66 Weapon Shielding 66 Evasion (%) 55 Targeting Accuracy 8 Core Analysis 12 Armor Integrity Analysis 40 Recoil Reduction 5 Kinecelleration 40 Offensive Hacking 20 Item Schematics ----------------- Lgt. Regenerative Plating | -7/Data Miner | Free Biomechanical Wings | -7/Data Miner | Free Combat Drone Bay | -7/Data Miner | Free Gravity Neutralizer | -7/Data Miner | Free Scatter Rocket Array | -7/Data Miner | Free Nuclear Pulse Array | -7/Data Miner | Free Imp. Recalibrator | -7/Data Miner | Free Matter Neutralizer | -7/Data Miner | Free Adv. Thermal Shield | -7/Data Miner | Free Hvy. Shock Bomb Launcher | -7/Data Miner | Free Robot Schematics ------------------ S-27 Virus | -7/Data Miner | Free X-62 Marksman | -7/Data Miner | Free B-60 Warrior | -7/Data Miner | Free G-50 Soldier | -7/Data Miner | Free X-72 Disruptor | -7/Data Miner | Free Y-64 Sentinel | -7/Data Miner | Free Fabricated ------------ X-62 Marksman | x2 | -6/Factory Alien Tech Used ----------------- None Achievements -------------- Giant Slayer Challenges ------------ None Game ------ Seed ConcussiveTachyonPropulsion Manual? 0 Play Time 04:15:51 Cumulative 267.0 hours Start 2024.09.03 @ 20:15:30 End 2024.09.04 @ 01:01:02 Sessions 1 Manual Loads 0 Difficulty Rogue Special Mode None Game No. 188 Rogue 188 Adventurer 0 Explorer 0 Win Type - Total 5 Types 5/0/0/0/0/0/0/0/0 Lore% 61 Gallery% 75 Achievement% 63 Wizard Run 0 Options --------- Layout 1 ASCII 0 Keyboard 1 Movement Numpad Keybinds 0 Fullscreen 2 Font 24/Smallcaps Map View 50x35 Zoom Use 0% Tactical HUD 1 Map Filters NONE Filters NONE Steam 1 RUN: cc058c99-20ea-4d75-8e55-91892b17a8ef